[Event "Late-Titled-Tuesday-Blitz-February-20-2024"]
[Site "Chess.com"]
[Date "2024.02.20"]
[Round "1"]
[White "wild3000"]
[Black "K_A_S_T_O_R"]
[Result "0-1"]
[WhiteElo "2423"]
[BlackElo "2806"]
[TimeControl "180+1"]
[EndTime "14:06:37 PST"]
[Termination "K_A_S_T_O_R won by resignation"]

1. d4 {[%clk 0:02:59.5]} 1... Nf6 {[%clk 0:02:59.4]} 2. Nf3 {[%clk 0:02:59.2]}
2... e6 {[%clk 0:02:59.7]} 3. g3 {[%clk 0:02:58.6]} 3... b6 {[%clk 0:02:59.6]}
4. Bg2 {[%clk 0:02:58.4]} 4... Bb7 {[%clk 0:03:00.2]} 5. O-O {[%clk 0:02:59]}
5... c5 {[%clk 0:03:00.7]} 6. c3 {[%clk 0:02:53.8]} 6... Be7 {[%clk 0:02:59.7]}
7. Bg5 {[%clk 0:02:52]} 7... O-O {[%clk 0:02:59.7]} 8. Nbd2 {[%clk 0:02:51.1]}
8... cxd4 {[%clk 0:02:58.6]} 9. Nxd4 {[%clk 0:02:44.2]} 9... Bxg2 {[%clk
0:02:57.6]} 10. Kxg2 {[%clk 0:02:45.1]} 10... Qc7 {[%clk 0:02:56.1]} 11. e3
{[%clk 0:02:38.6]} 11... a6 {[%clk 0:02:51.9]} 12. Qf3 {[%clk 0:02:33]} 12...
Ra7 {[%clk 0:02:51.4]} 13. a4 {[%clk 0:02:27.4]} 13... d6 {[%clk 0:02:49]} 14.
Rfd1 {[%clk 0:02:19.8]} 14... Rc8 {[%clk 0:02:48.1]} 15. Bxf6 {[%clk 0:02:11.2]}
15... Bxf6 {[%clk 0:02:47.1]} 16. Ne4 {[%clk 0:02:11.2]} 16... Be7 {[%clk
0:02:47.6]} 17. h4 {[%clk 0:02:09.6]} 17... h6 {[%clk 0:02:46.4]} 18. Rd2 {[%clk
0:01:52.8]} 18... Nd7 {[%clk 0:02:45.4]} 19. Qh5 {[%clk 0:01:41.8]} 19... d5
{[%clk 0:02:26.5]} 20. Ng5 {[%clk 0:01:06]} 20... hxg5 {[%clk 0:02:12.3]} 21.
hxg5 {[%clk 0:01:06.9]} 21... g6 {[%clk 0:02:11.8]} 22. Qh4 {[%clk 0:00:57.2]}
22... Qe5 {[%clk 0:02:10.8]} 23. Rh1 {[%clk 0:00:55.4]} 23... Nf8 {[%clk
0:02:10.7]} 24. f4 {[%clk 0:00:51.9]} 24... Qg7 {[%clk 0:02:08.4]} 25. Kf3
{[%clk 0:00:49]} 25... f6 {[%clk 0:01:57]} 26. gxf6 {[%clk 0:00:39]} 26... Bxf6
{[%clk 0:01:56.6]} 27. Qg4 {[%clk 0:00:39.2]} 27... Bxd4 {[%clk 0:01:56.2]} 28.
exd4 {[%clk 0:00:39.2]} 28... Qf6 {[%clk 0:01:56.3]} 29. Rdh2 {[%clk 0:00:36.7]}
29... Rh7 {[%clk 0:01:55.8]} 30. Rh6 {[%clk 0:00:29.3]} 30... Rxh6 {[%clk
0:01:54.6]} 31. Rxh6 {[%clk 0:00:30.2]} 31... Rc7 {[%clk 0:01:55]} 32. Qh3
{[%clk 0:00:25.1]} 32... Rh7 {[%clk 0:01:54.3]} 33. g4 {[%clk 0:00:22.4]} 33...
Kg7 {[%clk 0:01:50]} 34. Rxh7+ {[%clk 0:00:22.2]} 34... Nxh7 {[%clk 0:01:49.5]}
35. Kg3 {[%clk 0:00:20.5]} 35... g5 {[%clk 0:01:47.7]} 36. f5 {[%clk 0:00:17.5]}
36... exf5 {[%clk 0:01:47.6]} 37. gxf5 {[%clk 0:00:18.4]} 37... Qd6+ {[%clk
0:01:47.7]} 38. Kg2 {[%clk 0:00:16.9]} 38... Nf6 {[%clk 0:01:45.8]} 39. Qe3
{[%clk 0:00:10.9]} 39... Qh2+ {[%clk 0:01:37.8]} 40. Kxh2 {[%clk 0:00:08]} 40...
Ng4+ {[%clk 0:01:37.6]} 41. Kg3 {[%clk 0:00:07.9]} 41... Nxe3 {[%clk 0:01:38.2]}
42. Kf3 {[%clk 0:00:07.2]} 42... Nxf5 {[%clk 0:01:38.1]} 43. b3 {[%clk
0:00:08.1]} 43... b5 {[%clk 0:01:37.5]} 44. axb5 {[%clk 0:00:08]} 44... axb5
{[%clk 0:01:38.1]} 45. Kg4 {[%clk 0:00:07.4]} 45... Kg6 {[%clk 0:01:37.8]} 46.
Kf3 {[%clk 0:00:07.7]} 46... Nd6 {[%clk 0:01:37.2]} 47. Kg4 {[%clk 0:00:07.2]}
47... Kf6 {[%clk 0:01:37.5]} 48. Kf3 {[%clk 0:00:06.1]} 48... Kf5 {[%clk
0:01:37.7]} 49. Ke3 {[%clk 0:00:07]} 49... g4 {[%clk 0:01:37.7]} 0-1

[Event "Late-Titled-Tuesday-Blitz-February-20-2024"]
[Site "Chess.com"]
[Date "2024.02.20"]
[Round "1"]
[White "maxip32"]
[Black "Sajkochess"]
[Result "1-0"]
[WhiteElo "2658"]
[BlackElo "2354"]
[TimeControl "180+1"]
[EndTime "14:06:40 PST"]
[Termination "maxip32 won on time"]

1. e4 {[%clk 0:03:00.4]} 1... c6 {[%clk 0:03:00.2]} 2. d4 {[%clk 0:03:00.3]}
2... d5 {[%clk 0:03:00.8]} 3. e5 {[%clk 0:03:01]} 3... c5 {[%clk 0:03:01.1]} 4.
Nf3 {[%clk 0:03:01.2]} 4... Bg4 {[%clk 0:03:00.4]} 5. c4 {[%clk 0:03:00.4]} 5...
cxd4 {[%clk 0:02:58.4]} 6. cxd5 {[%clk 0:02:54.8]} 6... Qxd5 {[%clk 0:02:56.9]}
7. Nc3 {[%clk 0:02:54.6]} 7... Bxf3 {[%clk 0:02:56.9]} 8. Nxd5 {[%clk
0:02:54.3]} 8... Bxd1 {[%clk 0:02:55.3]} 9. Nc7+ {[%clk 0:02:54.9]} 9... Kd7
{[%clk 0:02:55.7]} 10. Nxa8 {[%clk 0:02:55.8]} 10... Bc2 {[%clk 0:02:53.8]} 11.
e6+ {[%clk 0:02:48.8]} 11... fxe6 {[%clk 0:02:52.6]} 12. Bf4 {[%clk 0:02:49.7]}
12... Nc6 {[%clk 0:02:49.2]} 13. Rc1 {[%clk 0:02:49.2]} 13... Bf5 {[%clk
0:02:28.6]} 14. Bb5 {[%clk 0:02:47.5]} 14... e5 {[%clk 0:02:28.8]} 15. Bxe5
{[%clk 0:02:47]} 15... Nf6 {[%clk 0:02:14.7]} 16. O-O {[%clk 0:02:45.8]} 16...
a6 {[%clk 0:02:08.4]} 17. Bxc6+ {[%clk 0:02:41.3]} 17... bxc6 {[%clk 0:02:08.8]}
18. Nb6+ {[%clk 0:02:41.9]} 18... Ke6 {[%clk 0:02:08.3]} 19. Rfe1 {[%clk
0:02:42]} 19... Kf7 {[%clk 0:02:08.2]} 20. Bxd4 {[%clk 0:02:41.8]} 20... e6
{[%clk 0:02:08.2]} 21. Rxc6 {[%clk 0:02:41.2]} 21... Be7 {[%clk 0:02:08.3]} 22.
Rc7 {[%clk 0:02:41.2]} 22... Rd8 {[%clk 0:02:07.7]} 23. Bc5 {[%clk 0:02:40.7]}
23... Ng8 {[%clk 0:02:06.1]} 24. h3 {[%clk 0:02:35.7]} 24... Kf6 {[%clk
0:02:05.8]} 25. Bxe7+ {[%clk 0:02:29.9]} 25... Nxe7 {[%clk 0:02:06.7]} 26. Nd7+
{[%clk 0:02:30]} 26... Kg5 {[%clk 0:01:57]} 27. Ne5 {[%clk 0:02:27.6]} 27... Kf6
{[%clk 0:01:52.5]} 28. Rxe7 {[%clk 0:02:27.3]} 28... Kxe7 {[%clk 0:01:52.4]} 29.
Nc6+ {[%clk 0:02:27.3]} 29... Kd7 {[%clk 0:01:53.3]} 30. Nxd8 {[%clk 0:02:28.1]}
30... Kxd8 {[%clk 0:01:54.2]} 31. Rc1 {[%clk 0:02:26.8]} 31... Kd7 {[%clk
0:01:52.8]} 32. b4 {[%clk 0:02:24.4]} 32... Be4 {[%clk 0:01:50.7]} 33. a4 {[%clk
0:02:24.1]} 33... Bc6 {[%clk 0:01:51.1]} 34. Rxc6 {[%clk 0:02:17.6]} 34... Kxc6
{[%clk 0:01:48.7]} 35. Kf1 {[%clk 0:02:18.1]} 35... Kd5 {[%clk 0:01:49.1]} 36.
Ke2 {[%clk 0:01:57]} 36... Kc4 {[%clk 0:01:49.3]} 37. b5 {[%clk 0:01:50.6]}
37... axb5 {[%clk 0:01:49.2]} 38. a5 {[%clk 0:01:40.3]} 38... Kc5 {[%clk
0:01:31.7]} 39. Kd3 {[%clk 0:01:40.3]} 39... b4 {[%clk 0:01:26.1]} 40. a6 {[%clk
0:01:39.7]} 40... Kb6 {[%clk 0:01:26.4]} 41. Kc4 {[%clk 0:01:40.1]} 41... Kxa6
{[%clk 0:01:24.3]} 42. Kxb4 {[%clk 0:01:40.7]} 42... Kb6 {[%clk 0:01:24.2]} 43.
Kc4 {[%clk 0:01:41.6]} 43... Kc6 {[%clk 0:01:24.1]} 44. Kd4 {[%clk 0:01:42.2]}
44... Kd6 {[%clk 0:01:23]} 45. f4 {[%clk 0:01:42.8]} 45... h6 {[%clk 0:00:50.2]}
46. Ke4 {[%clk 0:01:39.3]} 46... g6 {[%clk 0:00:30.8]} 47. g3 {[%clk 0:01:33]}
47... h5 {[%clk 0:00:19]} 48. g4 {[%clk 0:01:29.8]} 48... hxg4 {[%clk
0:00:05.6]} 49. hxg4 {[%clk 0:01:30.7]} 49... Kd7 {[%clk 0:00:04]} 50. Ke5
{[%clk 0:01:29.3]} 50... Ke7 {[%clk 0:00:04.3]} 51. g5 {[%clk 0:01:28.4]} 51...
Kf7 {[%clk 0:00:03.1]} 52. Kd6 {[%clk 0:01:28.7]} 52... e5 {[%clk 0:00:01.5]}
53. fxe5 {[%clk 0:01:28.3]} 1-0

[Event "Late-Titled-Tuesday-Blitz-February-20-2024"]
[Site "Chess.com"]
[Date "2024.02.20"]
[Round "1"]
[White "cthake"]
[Black "WilsonPalencia21"]
[Result "0-1"]
[WhiteElo "1781"]
[BlackElo "2518"]
[TimeControl "180+1"]
[EndTime "14:06:44 PST"]
[Termination "WilsonPalencia21 won on time"]

1. e4 {[%clk 0:02:49.6]} 1... c5 {[%clk 0:02:59.6]} 2. Nf3 {[%clk 0:02:46]} 2...
d6 {[%clk 0:03:00]} 3. d4 {[%clk 0:02:44.4]} 3... cxd4 {[%clk 0:03:00.9]} 4.
Nxd4 {[%clk 0:02:44.3]} 4... Nf6 {[%clk 0:02:59.8]} 5. Nc3 {[%clk 0:02:44.1]}
5... g6 {[%clk 0:02:36.4]} 6. Be3 {[%clk 0:02:42.5]} 6... Bg7 {[%clk 0:02:21.1]}
7. Bc4 {[%clk 0:02:23.6]} 7... O-O {[%clk 0:02:20.7]} 8. f3 {[%clk 0:02:21.1]}
8... Nc6 {[%clk 0:02:20.5]} 9. Qd2 {[%clk 0:02:19.3]} 9... Ne5 {[%clk
0:02:20.4]} 10. Bb3 {[%clk 0:02:17.4]} 10... Bd7 {[%clk 0:02:21]} 11. O-O-O
{[%clk 0:02:17]} 11... Rc8 {[%clk 0:02:20.8]} 12. Kb1 {[%clk 0:02:16.4]} 12...
Re8 {[%clk 0:02:20.4]} 13. h4 {[%clk 0:02:16.3]} 13... h5 {[%clk 0:02:19.9]} 14.
g4 {[%clk 0:02:14.6]} 14... hxg4 {[%clk 0:02:20]} 15. h5 {[%clk 0:02:15]} 15...
Nxh5 {[%clk 0:02:19.9]} 16. Rxh5 {[%clk 0:02:12.4]} 16... gxh5 {[%clk
0:02:19.6]} 17. Bh6 {[%clk 0:02:10.5]} 17... e6 {[%clk 0:01:52.3]} 18. Bxg7
{[%clk 0:01:55]} 18... Kxg7 {[%clk 0:01:51.4]} 19. f4 {[%clk 0:01:55]} 19... Nc4
{[%clk 0:01:48.9]} 20. Bxc4 {[%clk 0:01:31.2]} 20... Rxc4 {[%clk 0:01:49.8]} 21.
Rh1 {[%clk 0:01:21.4]} 21... Rh8 {[%clk 0:01:47.4]} 22. f5 {[%clk 0:01:17.6]}
22... Qf6 {[%clk 0:01:46]} 23. Nce2 {[%clk 0:01:10.9]} 23... e5 {[%clk
0:01:44.3]} 24. Nb3 {[%clk 0:01:00.8]} 24... Rxe4 {[%clk 0:01:43.3]} 25. Ng3
{[%clk 0:00:56.5]} 25... Bxf5 {[%clk 0:01:33.2]} 26. Rxh5 {[%clk 0:00:46.4]}
26... Rf4 {[%clk 0:00:53.6]} 27. Rxh8 {[%clk 0:00:37.5]} 27... Kxh8 {[%clk
0:00:51.9]} 28. Qh2+ {[%clk 0:00:25.7]} 28... Kg8 {[%clk 0:00:47.1]} 29. Nc1
{[%clk 0:00:19.7]} 29... Bg6 {[%clk 0:00:43]} 30. Nh5 {[%clk 0:00:18.4]} 30...
Bxh5 {[%clk 0:00:40.4]} 31. Qxh5 {[%clk 0:00:18.5]} 31... Qf5 {[%clk 0:00:37.6]}
32. Qh6 {[%clk 0:00:17.5]} 32... Rf2 {[%clk 0:00:35.7]} 0-1

[Event "Late-Titled-Tuesday-Blitz-February-20-2024"]
[Site "Chess.com"]
[Date "2024.02.20"]
[Round "1"]
[White "koncheto"]
[Black "GoltsevDmitry2000"]
[Result "0-1"]
[WhiteElo "2416"]
[BlackElo "2781"]
[TimeControl "180+1"]
[EndTime "14:06:45 PST"]
[Termination "GoltsevDmitry2000 won by resignation"]

1. e4 {[%clk 0:03:00.9]} 1... e6 {[%clk 0:02:52.7]} 2. d4 {[%clk 0:03:00.9]}
2... d5 {[%clk 0:02:53.4]} 3. Nd2 {[%clk 0:03:01.6]} 3... c5 {[%clk 0:02:53.8]}
4. exd5 {[%clk 0:03:00.8]} 4... exd5 {[%clk 0:02:53.9]} 5. Ngf3 {[%clk
0:03:00.6]} 5... Nf6 {[%clk 0:02:54.4]} 6. Bb5+ {[%clk 0:03:00.4]} 6... Nc6
{[%clk 0:02:55]} 7. O-O {[%clk 0:03:00.3]} 7... Be7 {[%clk 0:02:55.4]} 8. dxc5
{[%clk 0:03:00.4]} 8... Bxc5 {[%clk 0:02:56.3]} 9. Re1+ {[%clk 0:02:59.5]} 9...
Be6 {[%clk 0:02:56.5]} 10. Nb3 {[%clk 0:03:00.4]} 10... Bb6 {[%clk 0:02:56.6]}
11. Nbd4 {[%clk 0:02:59.9]} 11... O-O {[%clk 0:02:56.8]} 12. Bxc6 {[%clk
0:02:41.6]} 12... bxc6 {[%clk 0:02:56.4]} 13. Nxc6 {[%clk 0:02:42.5]} 13... Qd6
{[%clk 0:02:55.9]} 14. Ncd4 {[%clk 0:02:42.1]} 14... Bg4 {[%clk 0:02:55.7]} 15.
c3 {[%clk 0:02:37.1]} 15... Rfe8 {[%clk 0:02:51.7]} 16. Be3 {[%clk 0:02:30]}
16... Ne4 {[%clk 0:02:48.1]} 17. h3 {[%clk 0:02:16.6]} 17... Bh5 {[%clk
0:02:46.9]} 18. Qb3 {[%clk 0:02:03.2]} 18... Rab8 {[%clk 0:02:43.5]} 19. Qc2
{[%clk 0:02:00.8]} 19... Bg6 {[%clk 0:02:34.3]} 20. Rad1 {[%clk 0:01:59.2]}
20... Bc7 {[%clk 0:02:17.6]} 21. Qc1 {[%clk 0:01:35.3]} 21... Nc5 {[%clk
0:02:09.8]} 22. Re2 {[%clk 0:01:07.8]} 22... Nd3 {[%clk 0:02:04.8]} 23. Qa1
{[%clk 0:01:07.3]} 23... Be4 {[%clk 0:01:59.1]} 24. b3 {[%clk 0:00:44.1]} 24...
h6 {[%clk 0:01:01.9]} 25. g3 {[%clk 0:00:29.7]} 25... Qf6 {[%clk 0:00:50]} 26.
Ne1 {[%clk 0:00:20.5]} 26... Nxe1 {[%clk 0:00:31.4]} 27. Rdxe1 {[%clk
0:00:20.6]} 27... Bb6 {[%clk 0:00:30.9]} 28. Kh2 {[%clk 0:00:18.3]} 28... Rbc8
{[%clk 0:00:27.8]} 29. Qc1 {[%clk 0:00:17.8]} 29... Bxd4 {[%clk 0:00:22.2]} 30.
Bxd4 {[%clk 0:00:17.9]} 30... Qf3 {[%clk 0:00:22.8]} 0-1

[Event "Late-Titled-Tuesday-Blitz-February-20-2024"]
[Site "Chess.com"]
[Date "2024.02.20"]
[Round "1"]
[White "The_Straightforward_Rook"]
[Black "Shtembuliak"]
[Result "0-1"]
[WhiteElo "2445"]
[BlackElo "2859"]
[TimeControl "180+1"]
[EndTime "14:06:47 PST"]
[Termination "Shtembuliak won by resignation"]

1. Nf3 {[%clk 0:02:56.2]} 1... Nf6 {[%clk 0:03:00]} 2. d4 {[%clk 0:02:55.9]}
2... d6 {[%clk 0:02:59.9]} 3. Nbd2 {[%clk 0:02:46.4]} 3... Bf5 {[%clk
0:02:56.3]} 4. Nh4 {[%clk 0:02:43.6]} 4... Bd7 {[%clk 0:02:55.3]} 5. e4 {[%clk
0:02:43.2]} 5... e5 {[%clk 0:02:55.9]} 6. Nhf3 {[%clk 0:02:30.1]} 6... exd4
{[%clk 0:02:56.2]} 7. Nxd4 {[%clk 0:02:29.8]} 7... Nc6 {[%clk 0:02:56.8]} 8. c3
{[%clk 0:02:26]} 8... d5 {[%clk 0:02:47.3]} 9. Nxc6 {[%clk 0:02:17]} 9... Bxc6
{[%clk 0:02:47.4]} 10. e5 {[%clk 0:02:17.3]} 10... Ne4 {[%clk 0:02:47.6]} 11.
Nxe4 {[%clk 0:02:15.5]} 11... dxe4 {[%clk 0:02:48.5]} 12. Qxd8+ {[%clk
0:02:15.2]} 12... Rxd8 {[%clk 0:02:49.2]} 13. Bf4 {[%clk 0:02:13.1]} 13... Bc5
{[%clk 0:02:26.1]} 14. Bc4 {[%clk 0:02:03.8]} 14... b5 {[%clk 0:02:22]} 15. Bb3
{[%clk 0:02:03]} 15... Bb6 {[%clk 0:02:19.8]} 16. O-O {[%clk 0:01:54.3]} 16...
h6 {[%clk 0:02:19]} 17. h4 {[%clk 0:01:53.2]} 17... Ke7 {[%clk 0:02:18.2]} 18.
Rad1 {[%clk 0:01:50.8]} 18... a5 {[%clk 0:02:16.2]} 19. Rxd8 {[%clk 0:01:45.6]}
19... Rxd8 {[%clk 0:02:15.5]} 20. Rd1 {[%clk 0:01:46.2]} 20... Rxd1+ {[%clk
0:02:12.8]} 21. Bxd1 {[%clk 0:01:47.1]} 21... Bd5 {[%clk 0:02:09.3]} 22. a3
{[%clk 0:01:46.2]} 22... a4 {[%clk 0:02:07.3]} 23. Kf1 {[%clk 0:01:39.9]} 23...
Bc4+ {[%clk 0:02:07.6]} 24. Be2 {[%clk 0:01:39.6]} 24... Bxe2+ {[%clk
0:02:04.7]} 25. Kxe2 {[%clk 0:01:40.5]} 25... Ke6 {[%clk 0:02:05.1]} 26. g4
{[%clk 0:01:37.3]} 26... c6 {[%clk 0:01:59.7]} 27. h5 {[%clk 0:01:35]} 27... Kd5
{[%clk 0:01:56.3]} 28. f3 {[%clk 0:01:22.4]} 28... Bc5 {[%clk 0:01:44.8]} 29.
Bg3 {[%clk 0:01:08.3]} 29... exf3+ {[%clk 0:01:28.9]} 30. Kxf3 {[%clk
0:01:09.2]} 30... Kc4 {[%clk 0:01:29.3]} 31. Kf4 {[%clk 0:01:09.7]} 31... Kb3
{[%clk 0:01:25.3]} 32. Kf5 {[%clk 0:01:04.3]} 32... Kxb2 {[%clk 0:01:18.4]} 33.
e6 {[%clk 0:01:03.9]} 33... fxe6+ {[%clk 0:01:18.6]} 34. Kg6 {[%clk 0:01:01.5]}
34... Kxa3 {[%clk 0:01:13.1]} 35. Kxg7 {[%clk 0:01:00.4]} 35... Be3 {[%clk
0:01:13]} 36. Bh4 {[%clk 0:00:52.2]} 36... Kb3 {[%clk 0:01:09.5]} 37. g5 {[%clk
0:00:52.5]} 37... a3 {[%clk 0:01:04]} 38. gxh6 {[%clk 0:00:48.7]} 38... Bxh6+
{[%clk 0:01:01.3]} 39. Kxh6 {[%clk 0:00:46.6]} 39... a2 {[%clk 0:01:01.9]} 40.
Bf6 {[%clk 0:00:44.1]} 40... a1=Q {[%clk 0:01:01.8]} 41. Kg7 {[%clk 0:00:44.4]}
41... Qg1+ {[%clk 0:00:58.9]} 42. Kf7 {[%clk 0:00:43.9]} 42... Qb1 {[%clk
0:00:57.2]} 43. Kg7 {[%clk 0:00:42.7]} 43... Qg1+ {[%clk 0:00:43.9]} 44. Kf7
{[%clk 0:00:42.4]} 44... Qh2 {[%clk 0:00:44]} 45. Kg6 {[%clk 0:00:39.9]} 45...
Qg3+ {[%clk 0:00:43]} 46. Kh7 {[%clk 0:00:36.1]} 46... Qf3 {[%clk 0:00:39.3]}
47. Kg6 {[%clk 0:00:32.6]} 47... Qf5+ {[%clk 0:00:38.9]} 0-1

[Event "Late-Titled-Tuesday-Blitz-February-20-2024"]
[Site "Chess.com"]
[Date "2024.02.20"]
[Round "1"]
[White "RantomOpening"]
[Black "martinmena"]
[Result "1-0"]
[WhiteElo "2557"]
[BlackElo "2190"]
[TimeControl "180+1"]
[EndTime "14:06:47 PST"]
[Termination "RantomOpening won on time"]

1. e4 {[%clk 0:02:58.8]} 1... c6 {[%clk 0:02:59.2]} 2. d4 {[%clk 0:02:58.1]}
2... d5 {[%clk 0:03:00.1]} 3. Nc3 {[%clk 0:02:58.8]} 3... dxe4 {[%clk 0:03:00]}
4. Nxe4 {[%clk 0:02:59.7]} 4... Nd7 {[%clk 0:03:00]} 5. Ng5 {[%clk 0:02:57.6]}
5... Ngf6 {[%clk 0:02:58.6]} 6. Bd3 {[%clk 0:02:57.1]} 6... e6 {[%clk
0:02:51.1]} 7. Qe2 {[%clk 0:02:55.1]} 7... Nb6 {[%clk 0:02:38.7]} 8. N1f3 {[%clk
0:02:51.8]} 8... h6 {[%clk 0:02:38.8]} 9. Ne4 {[%clk 0:02:51.2]} 9... Be7 {[%clk
0:02:27.7]} 10. O-O {[%clk 0:02:46]} 10... Nbd7 {[%clk 0:02:27.1]} 11. c3 {[%clk
0:02:43.7]} 11... Qc7 {[%clk 0:02:24.2]} 12. Ng3 {[%clk 0:02:35.7]} 12... b6
{[%clk 0:02:17.4]} 13. Ne5 {[%clk 0:02:32]} 13... Nxe5 {[%clk 0:02:09]} 14. dxe5
{[%clk 0:02:32.9]} 14... Nd5 {[%clk 0:01:57.4]} 15. Qg4 {[%clk 0:02:24]} 15...
g6 {[%clk 0:01:34.8]} 16. Re1 {[%clk 0:02:19.2]} 16... Bb7 {[%clk 0:01:27.5]}
17. a3 {[%clk 0:01:44.5]} 17... O-O-O {[%clk 0:01:02.4]} 18. Bc2 {[%clk
0:01:38.8]} 18... h5 {[%clk 0:00:53.3]} 19. Qf3 {[%clk 0:01:38.3]} 19... h4
{[%clk 0:00:14.2]} 20. Ne4 {[%clk 0:01:36.1]} 20... b5 {[%clk 0:00:09.3]} 21.
Ng5 {[%clk 0:01:14.7]} 21... Bxg5 {[%clk 0:00:07.2]} 22. Bxg5 {[%clk 0:01:14.5]}
22... Rdf8 {[%clk 0:00:06.4]} 23. Be4 {[%clk 0:01:13.3]} 23... Qxe5 {[%clk
0:00:04.6]} 24. Bd2 {[%clk 0:01:06.9]} 24... Qc7 {[%clk 0:00:03.5]} 25. b3
{[%clk 0:01:06]} 25... f5 {[%clk 0:00:03.8]} 26. Bd3 {[%clk 0:01:04.1]} 26... e5
{[%clk 0:00:03.5]} 27. Bc2 {[%clk 0:00:59.3]} 27... e4 {[%clk 0:00:03.8]} 28.
Qh3 {[%clk 0:00:59]} 28... g5 {[%clk 0:00:03.2]} 29. g3 {[%clk 0:00:53.5]} 29...
g4 {[%clk 0:00:03.1]} 30. Qg2 {[%clk 0:00:53.4]} 30... f4 {[%clk 0:00:02.7]} 31.
Bxe4 {[%clk 0:00:51.8]} 31... fxg3 {[%clk 0:00:02.4]} 32. fxg3 {[%clk
0:00:52.2]} 32... hxg3 {[%clk 0:00:02.1]} 33. Qxg3 {[%clk 0:00:52.4]} 33... Rh3
{[%clk 0:00:01.8]} 34. Qxg4+ {[%clk 0:00:51.9]} 34... Qd7 {[%clk 0:00:01]} 35.
Bf5 {[%clk 0:00:49.4]} 1-0

[Event "Late-Titled-Tuesday-Blitz-February-20-2024"]
[Site "Chess.com"]
[Date "2024.02.20"]
[Round "1"]
[White "gshwbedhkhd"]
[Black "StrackedAktonamee"]
[Result "1-0"]
[WhiteElo "2609"]
[BlackElo "2281"]
[TimeControl "180+1"]
[EndTime "14:06:54 PST"]
[Termination "gshwbedhkhd won on time"]

1. f4 {[%clk 0:02:58.1]} 1... d5 {[%clk 0:02:53.3]} 2. Nf3 {[%clk 0:02:57.8]}
2... c5 {[%clk 0:02:52.7]} 3. g3 {[%clk 0:02:58.3]} 3... Nc6 {[%clk 0:02:52.5]}
4. Bg2 {[%clk 0:02:58.9]} 4... g6 {[%clk 0:02:51.7]} 5. O-O {[%clk 0:02:59.2]}
5... Bg7 {[%clk 0:02:52.3]} 6. d3 {[%clk 0:02:59.7]} 6... Nf6 {[%clk 0:02:52.6]}
7. Qe1 {[%clk 0:02:59.8]} 7... O-O {[%clk 0:02:50.9]} 8. Na3 {[%clk 0:02:58.9]}
8... d4 {[%clk 0:02:46.6]} 9. c3 {[%clk 0:02:58.5]} 9... Nd5 {[%clk 0:02:44.4]}
10. Bd2 {[%clk 0:02:58.5]} 10... e5 {[%clk 0:02:40.8]} 11. fxe5 {[%clk 0:02:56]}
11... Nxe5 {[%clk 0:02:41.4]} 12. Nxe5 {[%clk 0:02:55.1]} 12... Bxe5 {[%clk
0:02:40.7]} 13. Nc4 {[%clk 0:02:52.5]} 13... Bg7 {[%clk 0:02:37.1]} 14. Rc1
{[%clk 0:02:52.8]} 14... b5 {[%clk 0:02:27.5]} 15. Na3 {[%clk 0:02:51]} 15...
Rb8 {[%clk 0:02:26.9]} 16. Nc2 {[%clk 0:02:32.2]} 16... Re8 {[%clk 0:02:16.5]}
17. cxd4 {[%clk 0:02:28]} 17... cxd4 {[%clk 0:02:10.6]} 18. Qf2 {[%clk
0:02:26.9]} 18... Qd7 {[%clk 0:01:31.4]} 19. Nxd4 {[%clk 0:02:18.7]} 19... Bb7
{[%clk 0:01:18.5]} 20. Nb3 {[%clk 0:02:09.5]} 20... Qe7 {[%clk 0:01:04.9]} 21.
Nc5 {[%clk 0:02:05.2]} 21... Ba8 {[%clk 0:01:04.3]} 22. e4 {[%clk 0:02:01.7]}
22... Nb6 {[%clk 0:00:58.1]} 23. Be3 {[%clk 0:01:36.7]} 23... Na4 {[%clk
0:00:44.5]} 24. b3 {[%clk 0:01:32.8]} 24... Nc3 {[%clk 0:00:32.9]} 25. Rc2
{[%clk 0:01:09.2]} 25... b4 {[%clk 0:00:30.5]} 26. Na6 {[%clk 0:01:03.7]} 26...
Rbc8 {[%clk 0:00:28.4]} 27. Bd4 {[%clk 0:00:52]} 27... Bxd4 {[%clk 0:00:25.1]}
28. Qxd4 {[%clk 0:00:52.9]} 28... Red8 {[%clk 0:00:08.6]} 29. Qxb4 {[%clk
0:00:50.2]} 29... Qe5 {[%clk 0:00:07.6]} 30. Rcf2 {[%clk 0:00:34.7]} 30... Rxd3
{[%clk 0:00:07]} 31. Rxf7 {[%clk 0:00:32.4]} 31... Ne2+ {[%clk 0:00:06.7]} 32.
Kh1 {[%clk 0:00:32.6]} 32... Nxg3+ {[%clk 0:00:04.3]} 33. hxg3 {[%clk
0:00:32.2]} 33... Qh5+ {[%clk 0:00:04.1]} 34. Kg1 {[%clk 0:00:32.3]} 34... Rd6
{[%clk 0:00:01.9]} 35. Qxd6 {[%clk 0:00:31.5]} 1-0